bitfinex/quotes_ETHUSD_20230403
["timestamp","ask_amount","ask_price","bid_price","bid_amount"]
[1680514462655,0.19337,1810.0,1809.9,0.02060954]
[1680514463547,0.58011,1810.0,1809.8,0.56869625]
[1680514463742,0.58011,1810.0,1809.8,1.42713826]
[1680514463923,0.58011,1810.0,1809.8,0.56869625]
[1680514464119,0.58011,1810.0,1809.7,0.88099438]
[1680514464120,0.058011,1809.9,1809.7,0.02255237]
[1680514464451,0.058011,1809.9,1809.6,0.85844201]
[1680514464452,0.58017,1809.8,1809.6,0.85844201]
[1680514465551,0.58017,1809.8,1809.5,7.91855737]
[1680514465714,0.58017,1809.8,1809.6,0.85844201]
[1680514466955,0.58017,1809.8,1809.5,6.76944201]
[1680514467113,0.58017,1809.8,1809.5,6.76744201]
[1680514469526,0.58017,1809.8,1809.6,0.57906041]
[1680514469865,0.19339,1809.8,1809.6,0.57906041]
[1680514470157,0.58014,1809.9,1809.6,0.57906041]
[1680514470346,0.006,1810.0,1809.6,7.24027767]
[1680514470549,0.19337,1810.0,1809.7,0.57906041]
[1680514470863,3.58608,1810.1,1809.7,0.57906041]
[1680514471067,0.58608,1810.1,1809.7,0.57906041]
[1680514471362,0.19336,1810.1,1809.7,0.57906041]
[1680514471660,0.19336,1810.1,1809.7,1.50649928]
[1680514472760,0.19336,1810.1,1809.7,2.36494129]
[1680514473722,0.19336,1810.1,1809.8,0.57906041]
[1680514473922,0.19336,1810.1,1809.8,1.16686249]
[1680514477567,0.19336,1810.1,1809.8,0.58780208]
[1680514477768,0.854566,1810.1,1809.8,0.58780208]
[1680514479098,1.241276,1810.1,1809.8,0.58780208]
[1680514479888,4.02904328,1810.1,1809.8,0.58780208]
[1680514480105,5.25704328,1810.1,1809.8,0.58780208]
[1680514480295,5.25904328,1810.1,1809.8,0.58780208]
[1680514480474,0.52590433,1810.0,1809.8,0.58780208]
[1680514480675,0.71927433,1810.0,1809.8,0.58780208]
[1680514481503,0.52590433,1810.0,1809.8,0.58780208]
[1680514481903,0.71927433,1810.0,1809.8,0.58780208]
[1680514482301,0.52590433,1810.0,1809.8,0.58780208]
[1680514482699,3.45497328,1810.1,1809.8,0.58780208]
[1680514482900,0.19935,1810.1,1809.8,0.58780208]
[1680514483129,6.22535,1810.2,1809.8,1.16686249]
[1680514483688,6.22535,1810.2,1809.8,1.16886249]
[1680514483689,6.22038143,1810.2,1809.8,1.16886249]
[1680514483922,6.21638143,1810.2,1809.8,1.17286249]
[1680514484298,9.28014857,1810.2,1809.8,0.59380208]
[1680514484616,12.06791585,1810.2,1809.8,0.58780208]
[1680514486118,3.0,1810.1,1809.8,0.58780208]
[1680514486290,0.58011,1810.0,1809.8,0.58780208]
[1680514494298,2.78776728,1809.9,1809.8,0.58780208]
[1680514494497,8.82161501,1809.9,1809.8,0.58780208]
[1680514494702,8.82361501,1809.9,1809.8,0.58780208]
[1680514495236,8.82361501,1809.9,1809.6,0.006]
[1680514495533,0.5802,1809.7,1809.5,0.68506041]
[1680514495702,2.78776728,1809.6,1809.5,0.68506041]
[1680514495922,5.70044401,1809.6,1809.5,0.106]
[1680514496239,5.91467673,1809.6,1809.5,0.1]
[1680514497052,5.91467673,1809.6,1809.5,0.65421783]
[1680514500865,4.69267673,1809.6,1809.5,0.65421783]
[1680514501175,4.69067673,1809.6,1809.5,0.65421783]
[1680514501561,1.69067673,1809.6,1809.5,0.65421783]
[1680514501763,4.69067673,1809.6,1809.5,0.65421783]
[1680514502532,1.69067673,1809.6,1809.5,0.65421783]
[1680514502733,4.35388,1809.6,1809.5,0.65421783]
[1680514503884,1.35388,1809.6,1809.5,0.65421783]
[1680514504368,5.36364728,1809.6,1809.5,0.65421783]
[1680514504559,8.36564728,1809.6,1809.5,0.65421783]
[1680514505342,8.36564728,1809.6,1809.5,0.65142962]
[1680514505533,16.23381201,1809.6,1809.5,0.65142962]
[1680514505732,16.46381201,1809.6,1809.5,0.65142962]
[1680514505972,17.22943556,1809.6,1809.5,0.65142962]
[1680514506141,17.22943556,1809.6,1809.5,0.09721179]
[1680514506635,9.20281201,1809.6,1809.5,0.09721179]
[1680514507037,9.20281201,1809.6,1809.5,0.61081311]
[1680514507447,9.20281201,1809.6,1809.5,0.63069273]
[1680514508080,0.002,1809.6,1809.5,1.87524759]
[1680514508378,0.13641958,1809.9,1809.5,1.87524759]
[1680514508583,0.1934,1809.8,1809.5,1.87524759]
[1680514508735,0.1934,1809.8,1809.5,2.06277235]
[1680514509679,0.32979958,1809.9,1809.5,2.06277235]
[1680514510450,0.13641958,1809.9,1809.5,2.06277235]
[1680514510656,0.13641958,1809.9,1809.5,2.33908235]
[1680514510965,0.13641958,1809.9,1809.6,1.0]
[1680514511135,6.40972143,1810.2,1809.8,0.27626]
[1680514511136,6.02303143,1810.2,1809.8,0.27626]
[1680514511340,6.02303143,1810.2,1810.0,0.27624]
[1680514511781,6.02303143,1810.2,1810.1,0.02254738]
[1680514511940,6.02303143,1810.2,1810.1,0.29876738]
[1680514512147,6.02303143,1810.2,1810.1,0.85121738]
[1680514512360,6.02303143,1810.2,1810.1,1.09358912]
[1680514513940,6.02303143,1810.2,1810.1,1.64603912]
[1680514514883,6.02303143,1810.2,1810.1,1.66767713]
[1680514516250,6.02303143,1810.2,1810.1,7.47667713]
[1680514516450,6.02303143,1810.2,1810.1,8.69867713]
[1680514519295,6.02303143,1810.2,1810.1,9.18881072]
[1680514520266,6.02303143,1810.2,1810.1,8.63636072]
[1680514520669,6.02303143,1810.2,1810.1,9.18881072]
[1680514525396,6.02303143,1810.2,1810.1,0.5177716]
[1680514525596,6.02303143,1810.2,1810.1,0.7939916]
[1680514525964,6.02303143,1810.2,1810.1,8.3774416]
[1680514526162,6.02303143,1810.2,1810.1,2.5684416]
[1680514526368,6.02303143,1810.2,1810.1,8.3774416]
[1680514526594,6.02303143,1810.2,1810.1,9.21518576]
[1680514527120,6.02303143,1810.2,1810.1,10.32009576]
[1680514527885,6.02303143,1810.2,1810.1,9.21518576]
[1680514528487,6.02065138,1810.2,1810.1,8.66273576]
[1680514528705,6.02065138,1810.2,1810.1,2.57751576]
[1680514528893,6.02065138,1810.2,1810.1,8.65673576]
[1680514529198,6.02065138,1810.2,1810.1,8.66273576]
[1680514529569,6.02065138,1810.2,1810.1,2.85373576]
[1680514529800,6.02065138,1810.2,1810.1,1.7337716]
[1680514529965,6.02065138,1810.2,1810.1,2.0099916]
[1680514530165,6.02065138,1810.2,1810.1,1.7337716]
[1680514531793,6.02065138,1810.2,1810.1,0.5117716]
[1680514533201,6.28972913,1810.2,1810.1,0.02163801]
[1680514533417,6.29572913,1810.2,1810.0,0.24786801]
[1680514533925,6.29572913,1810.2,1810.1,0.02163317]
[1680514535926,9.71306932,1810.2,1809.8,0.002]
[1680514536089,1.214,1809.9,1809.7,0.006]
[1680514536290,3.36793728,1809.8,1809.5,0.09721179]
[1680514536491,4.7539151,1809.8,1809.5,0.09721179]
[1680514536731,3.0,1809.7,1809.5,0.09721179]
[1680514536948,0.19341,1809.6,1809.5,0.09721179]
[1680514537167,0.58623,1809.6,1809.5,0.09721179]
[1680514537429,1.21688723,1809.6,1809.5,0.09721179]
[1680514541092,1.19433734,1809.6,1809.5,0.09721179]
[1680514541294,0.58623,1809.6,1809.5,0.09721179]
[1680514542609,0.58023,1809.6,1809.5,0.09721179]
[1680514544676,3.36799728,1809.6,1809.5,0.09721179]
[1680514544943,15.62599728,1809.6,1809.5,0.09721179]
[1680514545153,17.98378663,1809.6,1809.5,0.09721179]
[1680514545294,18.21378663,1809.6,1809.5,0.09721179]
[1680514545494,18.20778663,1809.6,1809.5,1.179e-05]
[1680514545736,18.20778663,1809.6,1809.3,0.1]
[1680514545959,1.222,1809.4,1809.3,0.1]
[1680514546103,6.64566401,1809.4,1809.3,0.1]
[1680514546307,9.64766401,1809.4,1809.3,0.1]
[1680514547760,0.58229,1809.4,1809.3,0.1]
[1680514547972,0.19341,1809.6,1809.3,0.1]
[1680514548271,5.10596875,1809.7,1809.3,6.18534]
[1680514548478,0.40606875,1809.7,1809.4,0.618534]
[1680514548610,0.40406875,1809.7,1809.4,11.790534]
[1680514548809,0.40406875,1809.7,1809.4,11.796534]
[1680514549066,0.26557631,1809.7,1809.4,12.08987208]
[1680514549358,0.26557631,1809.7,1809.5,1.20898721]
[1680514549546,0.26557631,1809.7,1809.5,1.49129721]
[1680514550128,1.221,1810.1,1809.5,1.49129721]
[1680514550355,1.221,1810.1,1809.6,5.809]
[1680514550356,1.24354989,1810.1,1809.6,5.809]
[1680514550522,1.24354989,1810.1,1809.6,6.09129]
[1680514550729,1.24354989,1810.1,1809.6,6.87678072]
[1680514550730,0.02254989,1810.1,1809.6,6.87678072]
[1680514551119,0.5,1809.9,1809.6,7.87678072]
[1680514552852,0.5,1809.9,1809.6,8.42938072]
[1680514557956,0.5,1809.9,1809.6,7.87679072]
[1680514559123,0.5,1809.9,1809.6,7.0913]
[1680514559324,0.5,1809.9,1809.6,0.2823]
[1680514564164,0.60952443,1809.8,1809.6,0.2823]
[1680514565950,0.60952443,1809.8,1809.6,0.006]
[1680514566757,0.80291443,1809.8,1809.6,0.006]
[1680514567262,0.60952443,1809.8,1809.6,0.002]
[1680514567436,0.80291443,1809.8,1809.6,0.002]
[1680514567641,0.92960026,1809.8,1809.4,16.3365]
[1680514568349,0.92960026,1809.8,1809.4,0.006]
[1680514568550,0.92960026,1809.8,1809.3,5.0142]
[1680514568766,0.73621026,1809.8,1809.3,11.65623]
[1680514568971,0.60591882,1809.8,1809.4,0.048]
[1680514569127,0.60591882,1809.8,1809.5,0.27631]
[1680514571086,0.60591882,1809.8,1809.5,6.63794]
[1680514571587,0.60591882,1809.8,1809.5,5.809]
[1680514571974,0.60591882,1809.8,1809.5,6.08531]
[1680514572494,0.60591882,1809.8,1809.5,0.664597]
[1680514572651,0.60591882,1809.8,1809.5,0.27631]
[1680514574504,0.60591882,1809.8,1809.5,0.82894]
[1680514575764,0.60591882,1809.8,1809.5,6.63794]
[1680514575954,0.60591882,1809.8,1809.5,6.64394]
[1680514577870,0.60591882,1809.8,1809.5,7.22300041]
[1680514578074,0.60591882,1809.8,1809.5,0.006]
[1680514578075,2.78776728,1809.7,1809.5,0.006]
[1680514578297,0.19341,1809.6,1809.3,0.1]
[1680514578501,4.19316728,1809.7,1809.3,0.1]
[1680514578801,3.02254989,1809.6,1809.3,0.1]
[1680514579090,0.30225499,1809.5,1809.3,0.1]
[1680514579658,0.49567499,1809.5,1809.3,0.1]
[1680514579959,0.30225499,1809.5,1809.3,0.1]
[1680514580180,0.49567499,1809.5,1809.3,0.1]
[1680514581313,0.88251499,1809.5,1809.3,0.1]
[1680514581797,0.0882515,1809.4,1809.3,0.1]
[1680514581964,0.2816815,1809.4,1809.3,0.1]
[1680514582394,0.0882515,1809.4,1809.3,0.1]
[1680514582589,0.30225499,1809.5,1809.3,0.1]
[1680514582590,0.49567499,1809.5,1809.3,0.1]
[1680514582793,0.19342,1809.5,1809.3,0.1]
[1680514583097,0.58026,1809.5,1809.3,0.1]
[1680514585392,3.36802728,1809.5,1809.3,0.1]
[1680514585593,3.36802728,1809.5,1809.2,0.1]
[1680514585594,7.00876728,1809.4,1809.2,0.1]
[1680514585775,2.05496673,1809.3,1809.2,0.1]
[1680514586098,4.84273401,1809.3,1809.2,0.1]
[1680514586298,7.84273401,1809.3,1809.2,0.1]
[1680514586502,7.84473401,1809.3,1809.2,0.1]
[1680514586869,7.85073401,1809.3,1809.2,0.11758461]
[1680514587276,3.90231673,1809.3,1809.2,0.11758461]
[1680514587482,3.20143,1809.4,1809.2,0.11758461]
[1680514587681,3.19943,1809.4,1809.2,0.11758461]
[1680514588307,3.006,1809.4,1809.2,0.11758461]
[1680514588518,0.20142,1809.5,1809.2,0.11758461]
[1680514588817,0.19342,1809.5,1809.2,0.11758461]
[1680514589389,5.94637016,1809.6,1809.2,0.11758461]
[1680514589390,0.61195016,1809.6,1809.2,0.11758461]
[1680514589742,0.61195016,1809.6,1809.2,8.54972502]
[1680514589743,0.60995016,1809.6,1809.2,8.54972502]
[1680514590003,0.13505112,1809.8,1809.3,7.24303291]
[1680514590208,0.5,1809.9,1809.4,0.27632]
[1680514590502,0.5,1809.9,1809.4,0.82899]
[1680514590666,0.5,1809.9,1809.4,6.17999]
[1680514590873,0.5,1809.9,1809.5,0.617999]
[1680514591202,0.5,1809.9,1809.6,0.2763]
[1680514593210,0.5,1809.9,1809.6,0.8289]
[1680514594119,0.58428828,1809.8,1809.6,0.8289]
[1680514594907,0.58428828,1809.8,1809.7,0.01755727]
[1680514595109,0.58428828,1809.8,1809.7,0.29383727]
[1680514596513,0.58428828,1809.8,1809.5,3.38893943]
[1680514596724,0.58428828,1809.8,1809.7,0.27628]
[1680514596904,0.58428828,1809.8,1809.7,0.01675921]
[1680514597260,0.58428828,1809.8,1809.7,0.29303921]
[1680514599918,0.58428828,1809.8,1809.7,0.01675921]
[1680514600122,0.58428828,1809.8,1809.7,0.29303921]
[1680514601024,0.02854989,1810.1,1809.7,0.29303921]
[1680514607343,0.58347002,1810.1,1809.7,0.29303921]
[1680514608499,0.58347002,1810.1,1809.7,0.01675921]
[1680514608902,0.58347002,1810.1,1809.6,0.82886]
[1680514609200,0.56286761,1810.0,1809.6,0.82886]
[1680514609602,0.56286761,1810.0,1809.6,0.27628]
[1680514610028,0.56286761,1810.0,1809.7,0.01599471]
[1680514610940,0.56286761,1810.0,1809.6,0.27628]
[1680514612351,0.67750137,1810.0,1809.6,0.27628]
[1680514613008,0.67750137,1810.0,1809.7,0.01599471]
[1680514614149,0.67750137,1810.0,1809.6,0.2763]
[1680514614345,0.67750137,1810.0,1809.5,6.0853]
[1680514619231,0.87087137,1810.0,1809.5,6.0853]
[1680514619626,0.67750137,1810.0,1809.5,6.0853]
[1680514619827,0.67750137,1810.0,1809.5,7.46428561]
[1680514620471,0.87087137,1810.0,1809.5,7.46428561]
[1680514620759,0.67492079,1810.0,1809.5,7.47028561]
[1680514620958,0.56028703,1810.0,1809.5,7.47028561]
[1680514624150,0.71455441,1810.0,1809.5,7.47028561]
[1680514625942,0.71455441,1810.0,1809.5,8.02291561]
[1680514626660,0.71455441,1810.0,1809.5,9.82282167]
[1680514626886,0.71455441,1810.0,1809.6,6.79128217]
[1680514627086,5.52065138,1810.2,1809.7,0.27628]
[1680514627650,5.71399138,1810.2,1809.7,0.27628]
[1680514627843,5.52065138,1810.2,1809.7,0.27628]
[1680514629069,0.71637759,1810.1,1809.7,0.27628]
[1680514629239,0.71637759,1810.1,1809.7,1.03889622]
[1680514631470,0.71637759,1810.1,1809.7,0.27628]
[1680514632404,0.71637759,1810.1,1809.6,18.04980606]
[1680514632702,0.71637759,1810.1,1809.7,0.27627]
[1680514632902,0.71637759,1810.1,1809.7,7.21574606]
[1680514633114,0.71637759,1810.1,1809.8,0.57790606]
[1680514633262,0.71637759,1810.1,1809.8,1.66218487]
[1680514634290,0.71637759,1810.1,1809.8,7.47118487]
[1680514634480,0.71637759,1810.1,1809.8,7.47718487]
[1680514634702,0.72237759,1810.1,1809.8,8.02021639]
[1680514635080,0.72237759,1810.1,1809.8,8.30426082]
[1680514635286,0.72237759,1810.1,1809.9,0.83042608]
[1680514635603,0.72237759,1810.1,1809.9,1.10666608]
[1680514635909,0.71637759,1810.1,1809.9,1.10666608]
[1680514636311,0.71637759,1810.1,1809.9,1.65917608]
[1680514638800,0.71637759,1810.1,1809.9,7.46817608]
[1680514639110,0.71637759,1810.1,1810.0,1.02305761]
[1680514640210,0.71637759,1810.1,1809.9,0.002]
[1680514640415,0.71637759,1810.1,1809.9,0.27625]
[1680514640779,0.66637759,1810.1,1809.8,8.90883618]
[1680514640972,0.66637759,1810.1,1809.8,7.75772082]
[1680514642299,0.66637759,1810.1,1809.8,1.94872082]
[1680514642490,0.66637759,1810.1,1809.8,1.13670201]
[1680514642692,0.66637759,1810.1,1809.8,1.13470201]
[1680514644915,0.66637759,1810.1,1809.9,0.57891697]
[1680514645815,0.66637759,1810.1,1809.9,0.85516697]
[1680514646430,0.66637759,1810.1,1809.9,0.57891697]
[1680514647507,0.66637759,1810.1,1809.9,0.85516697]
[1680514648728,0.66637759,1810.1,1809.9,0.57891697]
[1680514648932,0.66637759,1810.1,1809.8,1.71961898]
[1680514649109,0.66637759,1810.1,1809.9,0.57891697]
[1680514650034,0.66637759,1810.1,1809.8,1.71961898]
[1680514650196,0.66637759,1810.1,1809.8,1.71561898]
[1680514650809,1.28733548,1810.1,1809.8,1.43935898]
[1680514651038,1.28733548,1810.1,1809.8,0.57891697]
[1680514651402,3.08940548,1810.1,1809.7,0.58491697]
[1680514651602,3.08940548,1810.1,1809.7,0.57891697]
[1680514651799,0.30894055,1810.0,1809.7,0.57891697]
[1680514651999,0.50231055,1810.0,1809.7,0.57891697]
[1680514652355,1.21668533,1810.0,1809.6,0.58491697]
[1680514652738,1.21668533,1810.0,1809.6,0.57891697]
[1680514652939,1.60342533,1810.0,1809.6,0.57891697]
[1680514656447,1.60342533,1810.0,1809.6,0.57891697]
[1680514658808,9.97910981,1809.9,1809.6,0.57891697]
[1680514659019,7.021,1809.7,1809.3,0.58691697]
[1680514659211,7.021,1809.7,1809.2,0.95844201]
[1680514659212,1.221,1809.5,1809.2,0.68091697]
[1680514659460,0.70239,1809.4,1809.2,0.1]
[1680514660050,0.70450974,1809.3,1809.2,0.1]
[1680514660266,1.28482974,1809.3,1809.2,0.1]
[1680514661749,1.28104286,1809.3,1809.2,0.1]
[1680514663343,1.28104286,1809.3,1809.0,0.67891697]
[1680514664653,0.89416286,1809.3,1809.0,0.67891697]
[1680514665053,6.1621,1809.6,1809.0,0.2637359]
[1680514665239,5.51865138,1810.2,1809.3,0.57891697]
[1680514665415,5.51865138,1810.2,1809.6,9.17568425]
[1680514665615,5.52165138,1810.2,1810.1,7.024]
[1680514665817,5.52765138,1810.2,1810.1,7.32276266]
[1680514666072,5.52765138,1810.2,1810.1,10.66297994]
[1680514666361,5.52765138,1810.2,1810.1,10.71697994]
[1680514666362,5.52165138,1810.2,1810.1,10.71697994]
[1680514666517,5.52165138,1810.2,1810.1,11.29589691]
[1680514666845,5.52165138,1810.2,1810.1,17.21981142]
[1680514667022,5.52165138,1810.2,1810.1,17.44981142]
[1680514667215,5.52165138,1810.2,1810.1,17.45354784]
[1680514667439,5.52165138,1810.2,1810.1,18.4325907]
[1680514668937,5.52165138,1810.2,1810.1,17.45354784]
[1680514669454,5.52165138,1810.2,1810.1,18.6046632]
[1680514669765,5.52165138,1810.2,1810.1,17.45354784]
[1680514670641,5.52165138,1810.2,1810.1,18.6046632]
[1680514670964,0.11000001,1810.9,1810.7,5.803]
[1680514671170,0.11000001,1810.9,1810.8,7.73584]
[1680514671338,0.11000001,1810.9,1810.8,8.99884]
[1680514673448,0.06000001,1810.9,1810.8,8.99884]
[1680514673650,0.06000001,1810.9,1810.8,2.09136]
[1680514673832,0.06000001,1810.9,1810.8,0.27612]
[1680514674032,0.94369691,1810.9,1810.8,0.27612]
[1680514674529,0.94369691,1810.9,1810.7,0.82838]
[1680514674735,0.94369691,1810.9,1810.7,0.27612]
[1680514675857,0.94369691,1810.9,1810.7,6.400619]
[1680514676463,0.94369691,1810.9,1810.7,6.96215851]
[1680514677134,0.94369691,1810.9,1810.7,0.87703851]
[1680514677381,0.94369691,1810.9,1810.7,1.15316851]
[1680514678132,0.94369691,1810.9,1810.7,6.96216851]
[1680514679174,0.94369691,1810.9,1810.7,0.87703851]
[1680514679539,0.94369691,1810.9,1810.7,0.315499]
[1680514679740,0.94369691,1810.9,1810.6,2.05448131]
[1680514680358,0.94369691,1810.9,1810.6,7.86348131]
[1680514682150,0.94369691,1810.9,1810.6,6.64148131]
[1680514682768,0.94369691,1810.9,1810.6,6.36535131]
[1680514685593,0.94369691,1810.9,1810.6,7.86350131]
[1680514685803,0.94369691,1810.9,1810.7,0.78635013]
[1680514686899,0.94369691,1810.9,1810.8,0.02253394]
[1680514687064,0.94369691,1810.9,1810.8,7.32965394]
[1680514687264,0.94369691,1810.9,1810.8,7.10153394]
[1680514691594,0.94369691,1810.9,1810.7,0.05]
[1680514691799,0.94369691,1810.9,1810.6,6.41335131]
[1680514692166,0.94369691,1810.9,1810.6,6.68950131]
[1680514692907,0.94369691,1810.9,1810.6,6.41335131]
[1680514693103,2.35796691,1810.9,1810.5,0.05]
[1680514693304,2.74450691,1810.9,1810.2,11.2249]
[1680514693491,0.27445069,1810.8,1810.2,11.2249]
[1680514693808,0.1933,1810.7,1810.2,11.1769]
[1680514694104,1.23855652,1810.7,1810.2,16.9859]
[1680514694815,1.23855652,1810.7,1810.2,11.1769]
[1680514695015,1.62514652,1810.7,1810.1,0.056]
[1680514695221,1.81510624,1810.7,1810.1,9.13322]
[1680514695516,1.42851624,1810.7,1810.2,0.048]
[1680514696780,1.42851624,1810.7,1810.1,9.08722]
[1680514696781,1.42851624,1810.7,1810.1,9.13522]
[1680514696968,1.81195478,1810.7,1810.1,5.865]
[1680514697173,1.5108533,1810.7,1810.1,6.14122]
[1680514697417,1.5108533,1810.7,1810.1,7.42953]
[1680514697574,1.5108533,1810.7,1810.1,7.15331]
[1680514698123,1.5108533,1810.7,1810.1,7.42953]
[1680514698280,1.5108533,1810.7,1810.1,7.15331]
[1680514698485,5.52062058,1810.7,1810.1,0.008]
[1680514698703,5.52362058,1810.7,1810.0,0.054]
[1680514699389,5.52362058,1810.7,1810.0,0.0765439]
[1680514701332,5.52362058,1810.7,1810.0,0.3527839]
[1680514701536,0.19332,1810.5,1810.0,0.0765439]
[1680514701740,0.74567206,1810.6,1810.1,0.048]
[1680514701941,1.13228206,1810.6,1810.0,0.0765439]
[1680514702252,0.73107028,1810.4,1810.0,0.3527839]
[1680514702592,0.73107028,1810.4,1810.1,0.048]
[1680514703210,0.19331,1810.6,1810.1,0.048]
[1680514703646,0.38325972,1810.7,1810.1,0.32422]
[1680514704141,0.38325972,1810.7,1810.2,0.048]
[1680514705203,0.003,1810.8,1810.4,1.222]
[1680514705406,0.06600001,1810.9,1810.4,7.031]
[1680514705407,0.06000001,1810.9,1810.4,7.031]
[1680514705591,0.06000001,1810.9,1810.3,16.8082]
[1680514705592,0.25327001,1810.9,1810.3,16.8082]
[1680514705787,0.97673701,1810.9,1810.3,10.9432]
[1680514706044,0.97673701,1810.9,1810.3,10.9972]
[1680514706927,3.76450429,1810.9,1810.3,0.054]
[1680514707239,4.97650429,1810.9,1810.3,0.048]
[1680514709911,4.97650429,1810.9,1810.2,0.3467414]
[1680514710111,0.49765043,1810.8,1810.2,0.3467414]
[1680514710330,0.69094043,1810.8,1810.3,0.048]
[1680514711047,0.69094043,1810.8,1810.3,0.62432397]
[1680514711253,0.69094043,1810.8,1810.3,0.90051397]
[1680514711545,0.69093043,1810.8,1810.3,0.90051397]
[1680514712406,0.49765043,1810.8,1810.3,0.90051397]
[1680514712624,0.69093043,1810.8,1810.3,0.90051397]
[1680514713040,0.49765043,1810.8,1810.3,0.90051397]
[1680514713207,0.69093043,1810.8,1810.3,0.90051397]
[1680514713412,0.49765043,1810.8,1810.3,0.90051397]
[1680514714027,0.95381355,1810.7,1810.3,0.90051397]
[1680514714195,0.95381355,1810.7,1810.3,1.1351101]
[1680514715109,4.25603729,1810.9,1810.3,1.1351101]
[1680514715307,4.25303729,1810.9,1810.3,1.1351101]
[1680514718959,4.25303729,1810.9,1810.2,6.70402735]
[1680514719170,4.25303729,1810.9,1810.1,0.57825275]
[1680514719171,1.212,1810.3,1810.1,0.57825275]
[1680514719297,9.95018728,1810.2,1810.1,0.002]
[1680514719501,9.95018728,1810.2,1809.5,0.106]
[1680514719502,6.48840601,1810.2,1809.7,1.15650549]
[1680514719812,1.23454142,1810.1,1809.6,1.15650549]
[1680514720144,1.42790142,1810.1,1809.6,1.15650549]
[1680514720513,1.43390142,1810.1,1809.5,7.06750549]
[1680514720717,1.82061142,1810.1,1809.5,7.06550549]
[1680514723517,0.19936,1810.1,1809.5,10.15358277]
[1680514723711,0.19336,1810.1,1809.6,12.01463105]
[1680514723905,0.58007,1810.1,1809.6,10.85812556]
[1680514724107,0.58007,1810.1,1809.6,1.01535828]
[1680514724937,0.58007,1810.1,1809.6,6.82435828]
[1680514725654,1.80107,1810.1,1809.6,1.01535828]
[1680514725937,1.80107,1810.1,1809.5,1.28250549]
[1680514726154,0.77942,1810.2,1809.6,2.81176728]
[1680514726155,0.006,1810.2,1809.6,2.81176728]
[1680514726340,0.006,1810.3,1809.8,1.222]
[1680514726503,0.19334,1810.3,1809.9,11.1767]
[1680514726703,1.80101,1810.3,1809.8,0.002]
[1680514726899,0.00384478,1809.8,1809.7,16.0985]
[1680514727573,0.38671,1810.2,1809.7,16.0985]
[1680514727723,1.41536,1810.1,1809.7,16.1045]
[1680514727912,1.222,1810.1,1809.7,11.0605]
[1680514728442,1.222,1810.1,1809.7,12.47306]
[1680514728628,1.222,1810.1,1809.7,12.49706]
[1680514728845,0.21588142,1810.3,1809.7,18.30606]
[1680514729030,0.21588142,1810.3,1809.8,0.024]
[1680514729236,0.64059636,1810.0,1809.8,0.024]
[1680514729407,0.64059636,1810.0,1809.8,1.12679624]
[1680514730235,0.21588142,1810.3,1809.8,1.12679624]
[1680514730832,0.21588142,1810.3,1809.8,1.40306624]
[1680514731031,0.21588142,1810.3,1809.8,1.12679624]
[1680514731945,0.60255142,1810.3,1809.8,1.10279624]
[1680514732247,0.78500656,1810.3,1809.7,17.4729438]
[1680514732550,0.78500656,1810.3,1809.7,17.4709438]
[1680514734059,0.78500656,1810.3,1809.7,17.7472238]
[1680514734463,0.78500656,1810.3,1809.7,17.4709438]
[1680514734764,0.78500656,1810.3,1809.7,17.7472238]
[1680514735766,0.39833656,1810.3,1809.7,17.7472238]
[1680514738835,0.39833656,1810.3,1809.8,0.5774438]
[1680514741906,0.39833656,1810.3,1809.8,6.6867138]
[1680514741907,0.02254142,1810.3,1809.8,6.6867138]
[1680514742111,0.02254142,1810.3,1809.8,11.7427138]
[1680514742476,0.21587142,1810.3,1809.8,11.7427138]
[1680514743275,0.21587142,1810.3,1809.8,11.4664438]
[1680514744215,0.67055182,1810.2,1809.8,11.4664438]
[1680514744507,0.86390182,1810.2,1809.8,11.4664438]
[1680514744883,0.67055182,1810.2,1809.8,11.4664438]
[1680514745475,0.86389182,1810.2,1809.8,11.4664438]
[1680514746303,0.86389182,1810.2,1809.8,5.6574438]
[1680514746520,1.25058182,1810.2,1809.8,5.6334438]
[1680514746685,1.37789414,1810.2,1809.8,5.6334438]
[1680514747276,1.37789414,1810.2,1809.8,5.056]
[1680514748809,1.222,1810.0,1809.7,0.002]
[1680514749145,1.222,1810.0,1809.5,0.1]
[1680514749146,0.5802,1809.7,1809.5,0.1]
[1680514749306,1.221,1809.6,1809.5,0.1]
[1680514749507,1.41441,1809.6,1809.5,0.1]
[1680514750144,1.80123,1809.6,1809.5,0.1]
[1680514750345,1.75123,1809.6,1809.5,0.1]
[1680514750508,1.926353,1809.6,1809.5,0.1]
[1680514752005,0.755353,1809.6,1809.5,0.12001677]
[1680514752209,0.58023,1809.6,1809.5,0.12001677]
[1680514752410,0.19341,1809.6,1809.5,0.12001677]
[1680514754630,0.58023,1809.6,1809.5,0.12001677]
[1680514758945,0.58023,1809.6,1809.5,0.1]
[1680514759160,1.24838389,1809.6,1809.5,0.1]
[1680514759359,1.45058528,1809.6,1809.5,0.1]
[1680514759862,1.45058528,1809.6,1809.5,0.12001783]
[1680514764514,0.66815389,1809.6,1809.5,0.12001783]
[1680514765104,0.19339,1809.8,1809.5,0.12001783]
[1680514765307,0.19338,1809.9,1809.5,0.12001783]
[1680514770120,0.58014,1809.9,1809.5,0.12001783]
[1680514770334,0.058014,1809.8,1809.5,0.12001783]
[1680514770501,0.19339,1809.8,1809.5,0.12001783]
[1680514773515,0.19129947,1809.8,1809.5,0.12001783]
[1680514773902,0.19338,1809.9,1809.5,0.12001783]
[1680514774099,0.56756028,1809.7,1809.5,0.12001783]
[1680514775208,0.19338,1809.9,1809.5,0.12001783]
[1680514775617,0.54689393,1810.0,1809.5,0.18976399]
[1680514775818,0.19338,1809.9,1809.5,0.18976399]
[1680514778162,0.54689393,1810.0,1809.5,0.18976399]
[1680514778365,0.35352393,1810.0,1809.5,0.18976399]
[1680514778956,0.35352393,1810.0,1809.5,0.76720779]
[1680514779297,0.35352393,1810.0,1809.6,0.07672078]
[1680514779495,0.35352393,1810.0,1809.5,0.18976399]
[1680514781163,0.74026393,1810.0,1809.5,0.18976399]
[1680514781357,0.74026393,1810.0,1809.5,0.12001783]
[1680514781770,9.33703121,1810.0,1809.5,0.12001783]
[1680514782092,0.58017,1809.8,1809.5,0.12001783]
[1680514783771,0.19339,1809.8,1809.5,0.12001783]
[1680514783973,0.19339,1809.8,1809.5,0.02001783]
[1680514784493,0.552005,1809.8,1809.5,0.02001783]
[1680514784692,8.59676728,1809.7,1809.5,0.02001783]
[1680514784894,2.57488,1809.6,1809.5,0.02001783]